[Event "5th EKA IIFL Investment 2019"]
[Site "Mumbai"]
[Date "2019.12.30"]
[Round "1.41"]
[White "Konguvel, Ponnuswamy"]
[Black "Tiwari, Arjun"]
[Result "1/2-1/2"]
[ECO "C63"]
[WhiteElo "2367"]
[BlackElo "2101"]
[Annotator "ChessBase"]
[PlyCount "81"]
[EventDate "2019.12.30"]
[EventType "swiss"]
[EventCountry "IND"]
[SourceTitle "playchess.com"]
[Source "ChessBase"]
[SourceQuality "1"]
[TimeControl "40/5400+30:1800+30"]

1. e4 {[%emt 0:00:00]} e5 {[%emt 0:00:00]} 2. Nf3 {[%emt 0:00:11]} Nc6 {[%emt 0:00:00]} 3. Bb5 {[%emt 0:00:12]} f5 {[%emt 0:00:00]} 4. d3 {[%emt 0:01:07]} fxe4 {[%emt 0:00:05]} 5. dxe4 {[%emt 0:00:06]} Nf6 {[%emt 0:00:04]} 6. O-O {[%emt 0:00:25]} Bc5 {[%emt 0:00:41]} 7. Bxc6 {[%emt 0:03:23]} bxc6 {[%emt 0:00:19]} 8. Nxe5 {[%emt 0:00:37]} O-O {[%emt 0:00:32]} 9. Nc3 {[%emt 0:00:41]} Ba6 {[%emt 0:09:51]} 10. Nd3 {[%emt 0:01:58]} Bd4 {[%emt 0:01:33]} 11. Ne2 {[%emt 0:25:35]} Bb6 {[%emt 0:00:28]} 12. Ng3 {[%emt 0:03:42]} Qe7 {[%emt 0:12:09]} 13. Bg5 {[%emt 0:24:46]} h6 {[%emt 0:06:11]} 14. Bxf6 {[%emt 0:00:51]} Rxf6 {[%emt 0:02:01]} 15. Qg4 {[%emt 0:00:25]} d6 {[%emt 0:20:27]} 16. Kh1 {[%emt 0:03:28]} Bxd3 {[%emt 0:05:46]} 17. cxd3 {[%emt 0:00:17]} Rxf2 {[%emt 0:00:17]} 18. Nf5 {[%emt 0:05:37]} Qf6 {[%emt 0:05:56]} 19. Rxf2 {[%emt 0:03:27]} Bxf2 {[%emt 0:00:03]} 20. Rf1 {[%emt 0:00:05]} Bd4 {[%emt 0:06:55]} 21. b3 {[%emt 0:01:21]} Re8 {[%emt 0:04:37]} 22. h4 {[%emt 0:02:21]} c5 {[%emt 0:02:03]} 23. Rf3 {[%emt 0:05:15]} Qe6 {[%emt 0:01:02]} 24. Qh5 {[%emt 0:09:33]} Be5 {[%emt 0:01:14]} 25. Ne3 {[%emt 0:00:47]} Rf8 {[%emt 0:02:37]} 26. Qg4 {[%emt 0:03:28]} Qxg4 {[%emt 0:01:26]} 27. Nxg4 {[%emt 0:00:02]} Bd4 {[%emt 0:03:15]} 28. h5 {[%emt 0:00:28]} Ra8 {[%emt 0:03:51]} 29. Rf5 {[%emt 0:00:03]} a5 {[%emt 0:01:02]} 30. e5 {[%emt 0:01:36]} a4 {[%emt 0:03:26]} 31. exd6 {[%emt 0:02:01]} axb3 {[%emt 0:03:05]} 32. axb3 {[%emt 0:00:02]} cxd6 {[%emt 0:00:02]} 33. Rd5 {[%emt 0:01:45]} Rb8 {[%emt 0:03:09]} 34. Rxd6 {[%emt 0:00:04]} Rxb3 {[%emt 0:00:01]} 35. Kh2 {[%emt 0:00:53]} Rxd3 {[%emt 0:00:21]} 36. Rc6 {[%emt 0:00:01]} Kf7 {[%emt 0:00:15]} 37. Rxc5 {[%emt 0:00:19]} Bxc5 {[%emt 0:02:15]} 38. Ne5+ {[%emt 0:00:00]} Kf6 {[%emt 0:00:11]} 39. Nxd3 {[%emt 0:00:02]} Bd6+ {[%emt 0:01:24]} 40. Kh3 {[%emt 0:00:00]} Kg5 {[%emt 0:00:00]} 41. g4 {[%emt 0:00:09]} 1/2-1/2

[Event "5th EKA IIFL Investment 2019"]
[Site "Mumbai"]
[Date "2019.12.30"]
[Round "1.42"]
[White "Tarini Goyal"]
[Black "Muthaiah AL"]
[Result "1/2-1/2"]
[ECO "E21"]
[WhiteElo "2098"]
[BlackElo "2363"]
[Annotator "ChessBase"]
[PlyCount "62"]
[EventDate "2019.12.30"]
[EventType "swiss"]
[EventCountry "IND"]
[SourceTitle "playchess.com"]
[Source "ChessBase"]
[SourceQuality "1"]
[TimeControl "40/5400+30:1800+30"]

1. d4 {[%emt 0:00:04]} Nf6 {[%emt 0:00:33]} 2. c4 {[%emt 0:00:16]} e6 {[%emt 0:00:32]} 3. Nc3 {[%emt 0:00:52]} Bb4 {[%emt 0:00:54]} 4. Nf3 {[%emt 0:00:19]} b6 {[%emt 0:01:07]} 5. e3 {[%emt 0:00:19]} Bb7 {[%emt 0:00:33]} 6. Bd3 {[%emt 0:00:25]} c5 {[%emt 0:04:56]} 7. O-O {[%emt 0:02:12]} Bxc3 {[%emt 0:00:25]} 8. bxc3 {[%emt 0:00:06]} O-O {[%emt 0:00:50]} 9. a4 {[%emt 0:05:31]} d6 {[%emt 0:06:10]} 10. a5 {[%emt 0:07:12]} Nbd7 {[%emt 0:05:15]} 11. Nd2 {[%emt 0:04:18]} Re8 {[%emt 0:07:09]} 12. e4 {[%emt 0:00:36]} cxd4 {[%emt 0:01:07]} 13. cxd4 {[%emt 0:00:10]} e5 {[%emt 0:00:51]} 14. d5 {[%emt 0:10:27]} Nc5 {[%emt 0:01:02]} 15. Bc2 {[%emt 0:04:46]} bxa5 {[%emt 0:04:46]} 16. Nb3 {[%emt 0:06:24]} Nxb3 {[%emt 0:03:21]} 17. Bxb3 {[%emt 0:00:48]} Nxe4 {[%emt 0:00:16]} 18. Be3 {[%emt 0:02:10]} Qc7 {[%emt 0:07:40]} 19. Bc2 {[%emt 0:19:36]} Nc5 {[%emt 0:07:27]} 20. Qb1 {[%emt 0:01:02]} Rab8 {[%emt 0:10:30]} 21. Bxh7+ {[%emt 0:01:34]} Kf8 {[%emt 0:00:26]} 22. Qf5 {[%emt 0:03:12]} Ba6 {[%emt 0:01:48]} 23. Qh3 {[%emt 0:04:25]} Nd7 {[%emt 0:08:39]} 24. Rfc1 {[%emt 0:08:39]} Ke7 {[%emt 0:08:24]} 25. Qh4+ {[%emt 0:01:12]} f6 {[%emt 0:04:01]} 26. Qg4 {[%emt 0:02:08]} Kd8 {[%emt 0:07:57]} 27. Qxg7 {[%emt 0:01:19]} Re7 {[%emt 0:00:12]} 28. Qg8+ {[%emt 0:00:32]} Re8 {[%emt 0:00:07]} 29. Qg7 {[%emt 0:00:41]} Re7 {[%emt 0:00:07]} 30. Qg8+ {[%emt 0:07:55]} Re8 31. Qg7 Re7 1/2-1/2

[Event "5th EKA IIFL Investment 2019"]
[Site "Mumbai"]
[Date "2019.12.30"]
[Round "1.43"]
[White "Audi Ameya"]
[Black "Jay Kundaliya"]
[Result "0-1"]
[ECO "B90"]
[WhiteElo "2360"]
[BlackElo "2088"]
[Annotator "ChessBase"]
[PlyCount "112"]
[EventDate "2019.12.30"]
[EventType "swiss"]
[EventCountry "IND"]
[SourceTitle "playchess.com"]
[Source "ChessBase"]
[SourceQuality "1"]
[TimeControl "40/5400+30:1800+30"]

1. e4 {[%emt 0:07:31]} c5 {[%emt 0:00:00]} 2. Nf3 {[%emt 0:02:23]} d6 {[%emt 0:00:04]} 3. d4 {[%emt 0:00:07]} cxd4 {[%emt 0:00:15]} 4. Nxd4 {[%emt 0:00:03]} Nf6 {[%emt 0:00:04]} 5. Nc3 {[%emt 0:00:05]} a6 {[%emt 0:00:11]} 6. f3 {[%emt 0:00:06]} e5 {[%emt 0:00:06]} 7. Nb3 {[%emt 0:00:03]} Be6 {[%emt 0:00:50]} 8. Be3 {[%emt 0:00:04]} Be7 {[%emt 0:00:14]} 9. Qd2 {[%emt 0:00:03]} O-O {[%emt 0:00:10]} 10. O-O-O {[%emt 0:00:04]} a5 {[%emt 0:01:00]} 11. Kb1 {[%emt 0:00:28]} Na6 {[%emt 0:01:17]} 12. g4 {[%emt 0:09:07]} Nc7 {[%emt 0:09:04]} 13. g5 {[%emt 0:06:20]} Nh5 {[%emt 0:00:29]} 14. a4 {[%emt 0:01:25]} Qc8 {[%emt 0:30:57]} 15. Rg1 {[%emt 0:04:37]} d5 {[%emt 0:09:11]} 16. Bb6 {[%emt 0:11:18]} d4 {[%emt 0:05:15]} 17. Na2 {[%emt 0:07:25]} Qd7 {[%emt 0:04:21]} 18. Nac1 {[%emt 0:05:45]} Rfc8 {[%emt 0:07:56]} 19. Bxc7 {[%emt 0:01:34]} Qxc7 {[%emt 0:01:09]} 20. Bb5 {[%emt 0:00:04]} Bb4 {[%emt 0:02:01]} 21. Qf2 {[%emt 0:00:22]} Nf4 {[%emt 0:00:37]} 22. Nd3 {[%emt 0:03:24]} Nh3 {[%emt 0:01:14]} 23. Qg2 {[%emt 0:00:05]} Nxg1 {[%emt 0:00:27]} 24. Rxg1 {[%emt 0:00:05]} Bd6 {[%emt 0:01:47]} 25. h4 {[%emt 0:02:07]} Bc4 {[%emt 0:03:53]} 26. Bxc4 {[%emt 0:01:03]} Qxc4 {[%emt 0:01:55]} 27. h5 {[%emt 0:00:02]} b5 {[%emt 0:02:16]} 28. g6 {[%emt 0:02:49]} fxg6 {[%emt 0:00:03]} 29. hxg6 {[%emt 0:00:03]} h6 {[%emt 0:00:02]} 30. axb5 {[%emt 0:00:13]} a4 {[%emt 0:00:03]} 31. Nbc1 {[%emt 0:00:07]} Rab8 {[%emt 0:02:35]} 32. Na2 {[%emt 0:06:54]} Rxb5 {[%emt 0:00:42]} 33. Rh1 {[%emt 0:00:10]} Ba3 {[%emt 0:01:45]} 34. Ka1 {[%emt 0:00:34]} Bf8 {[%emt 0:04:15]} 35. Qg4 {[%emt 0:01:22]} Rcb8 {[%emt 0:04:16]} 36. Qf5 {[%emt 0:00:15]} Re8 {[%emt 0:03:20]} 37. Rh2 {[%emt 0:01:32]} Qe6 {[%emt 0:00:13]} 38. Qh5 {[%emt 0:00:44]} Reb8 {[%emt 0:00:26]} 39. Rh1 {[%emt 0:01:42]} R8b6 {[%emt 0:01:04]} 40. Rg1 {[%emt 0:00:00]} Qc4 {[%emt 0:00:00]} 41. Qh2 {[%emt 0:02:08]} Qc7 {[%emt 0:04:59]} 42. Qg2 {[%emt 0:06:31]} Qb8 {[%emt 0:01:32]} 43. Qf1 {[%emt 0:02:31]} Be7 {[%emt 0:09:07]} 44. Qd1 {[%emt 0:02:59]} Bg5 {[%emt 0:02:37]} 45. Nab4 {[%emt 0:07:15]} Rxb4 {[%emt 0:07:24]} 46. Nxb4 {[%emt 0:00:04]} Rxb4 {[%emt 0:00:02]} 47. Rxg5 {[%emt 0:00:04]} hxg5 {[%emt 0:08:07]} 48. Qh1 {[%emt 0:00:03]} Rxb2 {[%emt 0:01:11]} 49. Qh7+ {[%emt 0:00:03]} Kf8 {[%emt 0:00:01]} 50. Qh8+ {[%emt 0:00:03]} Ke7 {[%emt 0:00:02]} 51. Qxg7+ {[%emt 0:00:04]} Kd6 {[%emt 0:00:01]} 52. Qf6+ {[%emt 0:01:17]} Kc5 {[%emt 0:00:02]} 53. Qe7+ {[%emt 0:01:18]} Kc4 {[%emt 0:00:03]} 54. Qa3 {[%emt 0:00:03]} Rb1+ {[%emt 0:01:11]} 55. Ka2 {[%emt 0:00:02]} Qb4 {[%emt 0:00:13]} 56. g7 {[%emt 0:02:02]} Ra1+ {[%emt 0:00:14]} 0-1

[Event "5th EKA IIFL Investment 2019"]
[Site "Mumbai"]
[Date "2019.12.30"]
[Round "1.44"]
[White "Ram Prakash, R."]
[Black "Neelash Saha"]
[Result "0-1"]
[ECO "A41"]
[WhiteElo "2191"]
[BlackElo "2356"]
[Annotator "ChessBase"]
[PlyCount "132"]
[EventDate "2019.12.30"]
[EventType "swiss"]
[EventCountry "IND"]
[SourceTitle "playchess.com"]
[Source "ChessBase"]
[SourceQuality "1"]
[TimeControl "40/5400+30:1800+30"]

1. d4 d6 2. e4 Nd7 3. Nf3 a6 4. Nc3 g6 5. Bc4 e6 6. a4 Bg7 7. Bg5 Ne7 8. Qd2 h6 9. Bh4 O-O 10. Rd1 b6 11. O-O Bb7 12. Rfe1 g5 13. Bg3 Ng6 14. h3 Re8 15. Bh2 Kh8 16. Qd3 Ndf8 17. Nd2 Nf4 18. Qe3 N8g6 19. Bf1 Qd7 20. Nb3 f5 21. h4 Bf6 22. hxg5 hxg5 23. e5 Be7 24. a5 Kg7 25. axb6 cxb6 26. d5 dxe5 27. Qxb6 exd5 28. Bxf4 gxf4 29. Nxd5 Bxd5 30. Qa5 Rad8 31. Bc4 Bxc4 32. Rxd7 Rxd7 33. Nd2 Bf7 34. Nf3 Bf6 35. Qxa6 e4 36. Nh2 Red8 37. Qa1 Rb7 38. Rb1 Rdb8 39. Qa5 Rb5 40. Qc7 R8b7 41. Qc8 Ne7 42. Qa8 Rb8 43. Qa7 R5b7 44. Qc5 Rxb2 45. Rxb2 Rb7 46. Rb4 Rxb4 47. g4 Rb2 48. gxf5 f3 49. Nf1 Rb1 50. c4 Rc1 51. Qe3 Rxc4 52. Qf4 Rc5 53. Ng3 Ra5 54. Qxe4 Bd5 55. Qf4 Kf7 56. Kh2 Ra8 57. Qe3 Rg8 58. Qf4 Rh8+ 59. Kg1 Rh4 60. Qc7 Rc4 61. Qd6 Rd4 62. Qc7 Rd1+ 63. Kh2 Rd2 64. Nh1 Re2 65. Kh3 Re4 66. Qd7 Rh4+ 0-1

[Event "5th EKA IIFL Investment 2019"]
[Site "Mumbai"]
[Date "2019.12.30"]
[Round "1.45"]
[White "Kaustuv, Kundu"]
[Black "Thipsay, Bagyashree Sathe"]
[Result "1-0"]
[ECO "A20"]
[WhiteElo "2349"]
[BlackElo "2087"]
[Annotator "ChessBase"]
[PlyCount "121"]
[EventDate "2019.12.30"]
[EventType "swiss"]
[EventCountry "IND"]
[SourceTitle "playchess.com"]
[Source "ChessBase"]
[SourceQuality "1"]
[TimeControl "40/5400+30:1800+30"]

1. c4 {[%emt 0:09:02]} e5 {[%emt 0:00:00]} 2. g3 {[%emt 0:00:29]} Nf6 {[%emt 0:00:00]} 3. Bg2 {[%emt 0:00:06]} d5 {[%emt 0:00:00]} 4. cxd5 {[%emt 0:00:05]} Nxd5 {[%emt 0:00:00]} 5. Nf3 {[%emt 0:00:07]} Nc6 {[%emt 0:00:10]} 6. O-O {[%emt 0:00:06]} Nb6 {[%emt 0:00:08]} 7. b3 {[%emt 0:00:14]} Bd6 {[%emt 0:01:12]} 8. Bb2 {[%emt 0:02:48]} O-O {[%emt 0:00:39]} 9. e4 {[%emt 0:00:50]} Bg4 {[%emt 0:01:58]} 10. h3 {[%emt 0:03:55]} Bxf3 {[%emt 0:01:39]} 11. Qxf3 {[%emt 0:03:25]} Bc5 {[%emt 0:01:20]} 12. Rc1 {[%emt 0:03:48]} Qe7 {[%emt 0:03:35]} 13. Nc3 {[%emt 0:01:03]} Nd4 {[%emt 0:02:31]} 14. Qd1 {[%emt 0:02:00]} c6 {[%emt 0:00:28]} 15. Rab1 {[%emt 0:07:11]} Rfd8 {[%emt 0:03:49]} 16. d3 {[%emt 0:00:47]} Rd7 {[%emt 0:04:46]} 17. Qf1 {[%emt 0:02:07]} Rad8 {[%emt 0:02:50]} 18. Kh1 {[%emt 0:01:44]} Ne6 {[%emt 0:04:08]} 19. Rd1 {[%emt 0:00:23]} Bd4 {[%emt 0:00:57]} 20. Rbc1 {[%emt 0:07:02]} Na8 {[%emt 0:02:05]} 21. h4 {[%emt 0:01:49]} Nac7 {[%emt 0:02:30]} 22. Bh3 {[%emt 0:01:29]} Nb5 {[%emt 0:16:58]} 23. Nxb5 {[%emt 0:06:41]} Bxb2 {[%emt 0:02:37]} 24. Rc2 {[%emt 0:00:05]} cxb5 {[%emt 0:02:24]} 25. Rxb2 {[%emt 0:00:25]} Rc7 {[%emt 0:00:25]} 26. Bxe6 {[%emt 0:00:49]} Qxe6 {[%emt 0:00:19]} 27. Rbd2 {[%emt 0:00:13]} Rd4 {[%emt 0:01:31]} 28. Rc1 {[%emt 0:00:44]} Qc8 {[%emt 0:02:33]} 29. Rxc7 {[%emt 0:00:26]} Qxc7 {[%emt 0:00:30]} 30. Qd1 {[%emt 0:00:50]} Qd7 {[%emt 0:04:09]} 31. Kg2 {[%emt 0:01:27]} f5 {[%emt 0:04:43]} 32. exf5 {[%emt 0:01:00]} e4 {[%emt 0:00:30]} 33. Qh5 {[%emt 0:02:15]} exd3 {[%emt 0:00:51]} 34. Qf3 {[%emt 0:00:59]} Kf7 {[%emt 0:01:59]} 35. Qe3 {[%emt 0:04:44]} Qd5+ {[%emt 0:01:47]} 36. f3 {[%emt 0:00:24]} a5 {[%emt 0:01:45]} 37. Kf2 {[%emt 0:01:37]} a4 {[%emt 0:01:25]} 38. Qe6+ {[%emt 0:00:05]} Qxe6 {[%emt 0:00:04]} 39. fxe6+ {[%emt 0:00:03]} Kxe6 {[%emt 0:00:07]} 40. Ke3 {[%emt 0:00:00]} Rd8 {[%emt 0:00:00]} 41. Rxd3 {[%emt 0:00:10]} Rc8 {[%emt 0:05:02]} 42. Kd2 {[%emt 0:03:33]} Rc7 {[%emt 0:01:48]} 43. Rc3 {[%emt 0:00:37]} Rf7 {[%emt 0:00:24]} 44. Re3+ {[%emt 0:02:45]} Kd5 {[%emt 0:05:05]} 45. Kc3 {[%emt 0:00:07]} axb3 {[%emt 0:04:47]} 46. axb3 {[%emt 0:01:18]} Kc5 {[%emt 0:07:49]} 47. f4 {[%emt 0:02:01]} Rd7 {[%emt 0:00:58]} 48. b4+ {[%emt 0:01:26]} Kc6 {[%emt 0:01:35]} 49. Re6+ {[%emt 0:00:09]} Kd5 {[%emt 0:00:37]} 50. Re5+ {[%emt 0:00:25]} Kc6 {[%emt 0:00:03]} 51. h5 {[%emt 0:01:16]} h6 {[%emt 0:05:19]} 52. g4 {[%emt 0:01:15]} Rf7 {[%emt 0:00:23]} 53. f5 {[%emt 0:00:32]} Rd7 {[%emt 0:00:27]} 54. Rc5+ {[%emt 0:02:48]} Kb6 {[%emt 0:00:40]} 55. Rc8 {[%emt 0:00:51]} Rd1 {[%emt 0:06:56]} 56. Rg8 {[%emt 0:00:17]} Rc1+ {[%emt 0:02:36]} 57. Kd3 {[%emt 0:00:41]} Rc4 {[%emt 0:01:44]} 58. Rxg7 {[%emt 0:00:05]} Rxb4 {[%emt 0:00:03]} 59. f6 {[%emt 0:03:41]} Rf4 {[%emt 0:03:13]} 60. f7 {[%emt 0:00:14]} b4 {[%emt 0:00:42]} 61. g5 {[%emt 0:00:26]} 1-0

[Event "5th EKA IIFL Investment 2019"]
[Site "Mumbai"]
[Date "2019.12.30"]
[Round "1.46"]
[White "Sarbojit Paul"]
[Black "Anuj Shrivatri"]
[Result "1/2-1/2"]
[ECO "C60"]
[WhiteElo "2084"]
[BlackElo "2348"]
[Annotator "ChessBase"]
[PlyCount "107"]
[EventDate "2019.12.30"]
[EventType "swiss"]
[EventCountry "IND"]
[SourceTitle "playchess.com"]
[Source "ChessBase"]
[SourceQuality "1"]
[TimeControl "40/5400+30:1800+30"]

1. e4 {[%emt 0:04:37]} e5 {[%emt 0:00:00]} 2. Nf3 {[%emt 0:00:51]} Nc6 {[%emt 0:00:00]} 3. Bb5 {[%emt 0:00:29]} g6 {[%emt 0:00:05]} 4. O-O {[%emt 0:02:38]} Bg7 {[%emt 0:01:04]} 5. c3 {[%emt 0:02:59]} a6 {[%emt 0:00:57]} 6. Ba4 {[%emt 0:00:35]} b5 {[%emt 0:01:33]} 7. Bb3 {[%emt 0:00:29]} d6 {[%emt 0:00:34]} 8. d4 {[%emt 0:00:19]} exd4 {[%emt 0:00:16]} 9. cxd4 {[%emt 0:00:44]} Nge7 {[%emt 0:06:49]} 10. Nc3 {[%emt 0:05:47]} O-O {[%emt 0:01:59]} 11. Nd5 {[%emt 0:10:23]} h6 {[%emt 0:12:59]} 12. h3 {[%emt 0:18:15]} Na5 {[%emt 0:05:22]} 13. Nxe7+ {[%emt 0:01:07]} Qxe7 {[%emt 0:00:03]} 14. Bc2 {[%emt 0:00:06]} c5 {[%emt 0:03:22]} 15. b3 {[%emt 0:12:37]} Nc6 {[%emt 0:06:35]} 16. Be3 {[%emt 0:03:28]} Qf6 {[%emt 0:06:11]} 17. e5 {[%emt 0:03:45]} dxe5 {[%emt 0:01:52]} 18. dxe5 {[%emt 0:02:45]} Nxe5 {[%emt 0:04:09]} 19. Be4 {[%emt 0:04:42]} Rb8 {[%emt 0:13:55]} 20. Bxc5 {[%emt 0:04:10]} Rd8 {[%emt 0:02:51]} 21. Qe2 {[%emt 0:03:39]} Bxh3 {[%emt 0:03:59]} 22. Ba7 {[%emt 0:05:46]} Nxf3+ {[%emt 0:07:37]} 23. Qxf3 {[%emt 0:00:03]} Qxf3 {[%emt 0:00:17]} 24. Bxf3 {[%emt 0:00:03]} Bxa1 {[%emt 0:00:20]} 25. gxh3 {[%emt 0:03:46]} Be5 {[%emt 0:05:10]} 26. Bxb8 {[%emt 0:00:30]} Bxb8 {[%emt 0:01:27]} 27. Rd1 {[%emt 0:03:07]} Rxd1+ {[%emt 0:00:49]} 28. Bxd1 {[%emt 0:00:01]} b4 {[%emt 0:00:01]} 29. Kf1 {[%emt 0:04:11]} Kg7 {[%emt 0:01:10]} 30. Be2 {[%emt 0:00:52]} a5 {[%emt 0:00:33]} 31. Bc4 {[%emt 0:00:53]} f5 {[%emt 0:02:26]} 32. h4 {[%emt 0:01:22]} Kf6 {[%emt 0:01:00]} 33. Kg2 {[%emt 0:00:57]} Bd6 {[%emt 0:00:21]} 34. Kf3 {[%emt 0:00:31]} Bc5 {[%emt 0:01:36]} 35. Kg3 {[%emt 0:00:32]} Bd4 {[%emt 0:00:13]} 36. f4 {[%emt 0:00:26]} Bc3 {[%emt 0:00:05]} 37. Be2 {[%emt 0:00:33]} Be1+ {[%emt 0:00:32]} 38. Kh3 {[%emt 0:00:00]} Ke6 {[%emt 0:00:34]} 39. Bc4+ {[%emt 0:00:26]} Ke7 {[%emt 0:00:02]} 40. Bg8 {[%emt 0:00:00]} Bf2 {[%emt 0:00:00]} 41. Bc4 {[%emt 0:02:23]} Bc5 {[%emt 0:04:49]} 42. Kg3 {[%emt 0:01:45]} Be3 {[%emt 0:00:03]} 43. Bg8 {[%emt 0:01:59]} Bd2 {[%emt 0:00:08]} 44. Bc4 {[%emt 0:00:37]} Kf6 {[%emt 0:00:22]} 45. Bg8 {[%emt 0:01:40]} Be1+ {[%emt 0:00:44]} 46. Kh3 {[%emt 0:00:02]} g5 {[%emt 0:00:07]} 47. hxg5+ {[%emt 0:00:51]} hxg5 {[%emt 0:00:01]} 48. fxg5+ {[%emt 0:01:17]} Kxg5 {[%emt 0:00:03]} 49. Kg2 {[%emt 0:01:21]} Kf4 {[%emt 0:00:04]} 50. Kf1 {[%emt 0:01:59]} Bh4 {[%emt 0:00:04]} 51. Ke2 {[%emt 0:00:10]} Ke4 {[%emt 0:00:03]} 52. Bh7 {[%emt 0:00:47]} Bg5 {[%emt 0:00:02]} 53. Bg6 {[%emt 0:00:16]} Ke5 {[%emt 0:00:02]} 54. Kd3 {[%emt 0:00:34]} 1/2-1/2

[Event "5th EKA IIFL Investment 2019"]
[Site "Mumbai"]
[Date "2019.12.30"]
[Round "1.47"]
[White "Harshavardhan G B"]
[Black "Pimpalkhare Vedant"]
[Result "1-0"]
[ECO "D41"]
[WhiteElo "2344"]
[BlackElo "2082"]
[Annotator "ChessBase"]
[PlyCount "49"]
[EventDate "2019.12.30"]
[EventType "swiss"]
[EventCountry "IND"]
[SourceTitle "playchess.com"]
[Source "ChessBase"]
[SourceQuality "1"]
[TimeControl "40/5400+30:1800+30"]

1. d4 e6 2. c4 Nf6 3. Nc3 d5 4. Nf3 c5 5. cxd5 Nxd5 6. e4 Nxc3 7. bxc3 cxd4 8. cxd4 Bb4+ 9. Bd2 Bxd2+ 10. Qxd2 O-O 11. Bc4 Nd7 12. O-O b6 13. e5 Bb7 14. Qe3 Bxf3 15. Qxf3 Qh4 16. Qe3 Rfd8 17. f4 Nf8 18. Rad1 Rac8 19. Bb3 g6 20. d5 exd5 21. Bxd5 Rc7 22. e6 fxe6 23. Bxe6+ Nxe6 24. Qxe6+ Kf8 25. g3 1-0

[Event "5th EKA IIFL Investment 2019"]
[Site "Mumbai"]
[Date "2019.12.30"]
[Round "1.48"]
[White "Nikhil Magizhnan"]
[Black "Ameir, Moheb"]
[Result "0-1"]
[ECO "B12"]
[WhiteElo "2077"]
[BlackElo "2342"]
[Annotator "ChessBase"]
[PlyCount "71"]
[EventDate "2019.12.30"]
[EventType "swiss"]
[EventCountry "IND"]
[SourceTitle "playchess.com"]
[Source "ChessBase"]
[SourceQuality "1"]
[TimeControl "40/5400+30:1800+30"]

1. e4 c6 2. d4 d5 3. e5 Bf5 4. Ne2 e6 5. Ng3 Bg6 6. h4 h5 7. c4 Ne7 8. Nc3 dxc4 9. Bxc4 Nf5 10. Nge2 Bh7 11. Bg5 Be7 12. Qd2 Nd7 13. Ne4 Nb6 14. Bd3 f6 15. exf6 gxf6 16. Be3 Nd5 17. O-O Nxh4 18. N4g3 Bxd3 19. Qxd3 Qd7 20. Rad1 O-O-O 21. Rfe1 Rdg8 22. Bc1 Bd6 23. Nc3 Nxg2 24. Kxg2 Nxc3 25. bxc3 h4 26. Rh1 hxg3 27. Rxh8 Rxh8 28. fxg3 Rg8 29. Rh1 Rxg3+ 30. Qxg3 Bxg3 31. Kxg3 e5 32. Be3 b6 33. Rh6 Kb7 34. Kf2 Qf5+ 35. Ke1 Qd3 36. Bd2 0-1

[Event "5th EKA IIFL Investment 2019"]
[Site "Mumbai"]
[Date "2019.12.30"]
[Round "1.49"]
[White "Bharat Kumar Reddy Poluri"]
[Black "Bakshi, Rutuja"]
[Result "1-0"]
[ECO "C09"]
[WhiteElo "2337"]
[BlackElo "2075"]
[Annotator "ChessBase"]
[PlyCount "119"]
[EventDate "2019.12.30"]
[EventType "swiss"]
[EventCountry "IND"]
[SourceTitle "playchess.com"]
[Source "ChessBase"]
[SourceQuality "1"]
[TimeControl "40/5400+30:1800+30"]

1. e4 {[%emt 0:00:00]} e6 {[%emt 0:06:07]} 2. d4 {[%emt 0:00:00]} d5 {[%emt 0:00:05]} 3. Nd2 {[%emt 0:00:06]} c5 {[%emt 0:00:05]} 4. Ngf3 {[%emt 0:00:39]} Nc6 {[%emt 0:00:08]} 5. exd5 {[%emt 0:00:20]} exd5 {[%emt 0:00:06]} 6. Bb5 {[%emt 0:00:38]} Bd6 {[%emt 0:00:51]} 7. O-O {[%emt 0:00:08]} Nge7 {[%emt 0:00:07]} 8. dxc5 {[%emt 0:00:26]} Bxc5 {[%emt 0:00:04]} 9. Nb3 {[%emt 0:00:08]} Bd6 {[%emt 0:00:26]} 10. Re1 {[%emt 0:02:35]} O-O {[%emt 0:04:46]} 11. h3 {[%emt 0:00:32]} Bf5 {[%emt 0:06:58]} 12. c3 {[%emt 0:06:35]} h6 {[%emt 0:19:06]} 13. Be3 {[%emt 0:00:47]} Qc7 {[%emt 0:04:46]} 14. Nfd4 {[%emt 0:05:12]} Be4 {[%emt 0:03:59]} 15. Bd3 {[%emt 0:01:43]} Bxd3 {[%emt 0:00:51]} 16. Qxd3 {[%emt 0:00:13]} Ne5 {[%emt 0:00:22]} 17. Qc2 {[%emt 0:01:14]} Qd7 {[%emt 0:03:07]} 18. Rad1 {[%emt 0:02:41]} Nc4 {[%emt 0:05:02]} 19. Nf3 {[%emt 0:00:59]} Rad8 {[%emt 0:04:28]} 20. Bc5 {[%emt 0:03:53]} Qc7 {[%emt 0:01:27]} 21. Bxd6 {[%emt 0:01:24]} Nxd6 {[%emt 0:00:22]} 22. Rd3 {[%emt 0:02:46]} Ne4 {[%emt 0:03:23]} 23. Nfd2 {[%emt 0:05:23]} Nc6 {[%emt 0:05:42]} 24. Rde3 {[%emt 0:09:38]} f5 {[%emt 0:02:34]} 25. Nf3 {[%emt 0:01:26]} Qb6 {[%emt 0:06:56]} 26. Rd1 {[%emt 0:01:49]} Rf6 {[%emt 0:06:09]} 27. Red3 {[%emt 0:02:26]} Rfd6 {[%emt 0:02:24]} 28. Nbd4 {[%emt 0:01:15]} g6 {[%emt 0:00:28]} 29. a3 {[%emt 0:07:14]} Na5 {[%emt 0:02:38]} 30. a4 {[%emt 0:02:16]} a6 {[%emt 0:00:46]} 31. b4 {[%emt 0:03:44]} Nc4 {[%emt 0:00:32]} 32. a5 {[%emt 0:00:41]} Qa7 {[%emt 0:01:43]} 33. Nb3 {[%emt 0:02:14]} b6 {[%emt 0:01:38]} 34. Ra1 {[%emt 0:01:05]} bxa5 {[%emt 0:02:11]} 35. Nxa5 {[%emt 0:00:13]} Qb6 {[%emt 0:00:56]} 36. Nd4 {[%emt 0:04:30]} Ne5 {[%emt 0:01:04]} 37. Re3 {[%emt 0:01:02]} Nc4 {[%emt 0:00:54]} 38. Nxc4 {[%emt 0:09:24]} dxc4 {[%emt 0:00:02]} 39. Rxe4 {[%emt 0:00:23]} fxe4 {[%emt 0:00:42]} 40. Qxe4 {[%emt 0:00:00]} Rf6 {[%emt 0:00:00]} 41. Ra5 {[%emt 0:01:56]} Qd6 {[%emt 0:07:37]} 42. Re5 {[%emt 0:02:29]} Rdf8 {[%emt 0:01:21]} 43. f3 {[%emt 0:00:18]} Qd7 {[%emt 0:04:20]} 44. Re7 {[%emt 0:02:21]} Qa4 {[%emt 0:00:35]} 45. Qd5+ {[%emt 0:01:36]} R8f7 {[%emt 0:01:38]} 46. Qxc4 {[%emt 0:06:23]} Qd1+ {[%emt 0:00:25]} 47. Kh2 {[%emt 0:00:10]} Qd2 {[%emt 0:01:01]} 48. Re4 {[%emt 0:04:28]} Kh7 {[%emt 0:02:21]} 49. Qc8 {[%emt 0:03:02]} Rf4 {[%emt 0:03:41]} 50. Re8 {[%emt 0:03:40]} Rxd4 {[%emt 0:00:51]} 51. cxd4 {[%emt 0:00:12]} Qf4+ {[%emt 0:00:48]} 52. Kh1 {[%emt 0:00:33]} Qxd4 {[%emt 0:00:10]} 53. Qb8 {[%emt 0:00:54]} Rd7 {[%emt 0:03:56]} 54. Re6 {[%emt 0:01:13]} a5 {[%emt 0:01:43]} 55. b5 {[%emt 0:04:04]} a4 {[%emt 0:00:05]} 56. Ra6 {[%emt 0:01:54]} Qf2 {[%emt 0:03:31]} 57. Kh2 {[%emt 0:00:55]} Qd4 {[%emt 0:04:53]} 58. b6 {[%emt 0:00:39]} h5 {[%emt 0:00:46]} 59. b7 {[%emt 0:03:33]} Qc4 {[%emt 0:00:41]} 60. Ra8 {[%emt 0:02:22]} 1-0